bitfinex/quotes_SOLUSD_20250718
["timestamp","ask_amount","ask_price","bid_price","bid_amount"]
[1752824741591,76.4696712,182.82,182.81,0.03]
[1752824742406,69.14454503,182.82,182.81,0.03]
[1752824742607,76.4696712,182.82,182.81,0.03]
[1752824743105,63.67468397,182.82,182.81,0.03]
[1752824743307,62.99468397,182.82,182.81,0.03]
[1752824743507,33.79468397,182.82,182.81,0.03]
[1752824743705,63.67468397,182.82,182.81,0.03]
[1752824744094,34.47468397,182.82,182.81,0.03]
[1752824744313,63.67468397,182.82,182.81,0.03]
[1752824744820,46.66468397,182.82,182.81,0.03]
[1752824745022,17.46468397,182.82,182.81,0.03]
[1752824745225,52.13454503,182.82,182.81,0.03]
[1752824745539,63.88967502,182.82,182.81,0.03]
[1752824747496,22.93454503,182.82,182.81,0.03]
[1752824747696,63.88967502,182.82,182.81,0.03]
[1752824748727,22.93454503,182.82,182.81,0.03]
[1752824749047,17.46468397,182.82,182.81,0.03]
[1752824749234,45.98468397,182.82,182.81,0.03]
[1752824749401,52.13454503,182.82,182.81,0.03]
[1752824749730,63.88967502,182.82,182.81,0.03]
[1752824750111,16.78468397,182.81,182.8,0.03]
[1752824750322,29.21981396,182.81,182.8,0.03]
[1752824750530,23.76124141,182.77,182.76,0.03]
[1752824750719,64.7163714,182.77,182.76,0.03]
[1752824750925,65.3963714,182.77,182.76,0.03]
[1752824753256,82.4063714,182.77,182.76,0.03]
[1752824753420,53.2063714,182.77,182.76,0.03]
[1752824753614,82.4063714,182.77,182.76,0.03]
[1752824754018,108.4063714,182.77,182.76,0.03]
[1752824756830,91.62168743,182.77,182.76,0.03]
[1752824757030,108.4063714,182.77,182.76,0.03]
[1752824760125,16.78468397,182.76,182.73,0.2]
[1752824760330,11.75512999,182.74,182.73,0.2]
[1752824760524,16.78468397,182.74,182.73,0.2]
[1752824760739,34.67206962,182.74,182.73,0.2]
[1752824761442,34.67206962,182.74,182.73,1e-08]
[1752824763439,16.78468397,182.73,182.72,1e-08]
[1752824763624,58.39981396,182.73,182.72,1e-08]
[1752824764743,46.64468397,182.73,182.72,1e-08]
[1752824764947,52.1172391,182.73,182.72,1e-08]
[1752824765331,63.87236909,182.73,182.72,1e-08]
[1752824767159,59.47533001,182.73,182.72,1e-08]
[1752824767645,50.14277488,182.67,182.66,0.2]
[1752824767953,79.34277488,182.67,182.66,0.2]
[1752824768150,80.00277488,182.67,182.66,0.2]
[1752824769078,85.47712753,182.67,182.66,0.2]
[1752824769846,48.91903662,182.67,182.66,0.2]
[1752824770153,85.49712753,182.67,182.66,0.2]
[1752824771038,56.27712753,182.67,182.66,0.2]
[1752824771230,85.49712753,182.67,182.66,0.2]
[1752824773859,85.49712753,182.67,182.56,0.69]
[1752824773860,16.78468397,182.66,182.57,0.69]
[1752824774157,16.78468397,182.61,182.57,0.69]
[1752824774336,16.78468397,182.59,182.57,0.69]
[1752824774532,16.78468397,182.57,182.56,5.47759674]
[1752824774763,16.78468397,182.57,182.55,12.83601062]
[1752824774958,29.22,182.56,182.55,12.83601062]
[1752824775850,29.22,182.56,182.55,13.52601062]
[1752824776051,29.22,182.56,182.55,16.32027675]
[1752824776257,46.00468397,182.56,182.55,3.48426613]
[1752824776619,7.35809091,182.63,182.55,12.83604215]
[1752824776751,16.78468397,182.65,182.62,7.35809091]
[1752824777070,29.22,182.64,182.61,7.35809091]
[1752824777363,29.22,182.64,182.6,7.35809091]
[1752824777537,29.22,182.64,182.59,12.83467311]
[1752824777856,29.22,182.64,182.59,5.4765822]
[1752824778062,29.22,182.64,182.6,7.35809091]
[1752824778244,29.22,182.64,182.61,7.35809091]
[1752824778449,29.22,182.64,182.61,7.53809091]
[1752824778651,7.35809091,182.68,182.63,7.35809091]
[1752824778866,29.22,182.67,182.64,7.35809091]
[1752824779062,16.78468397,182.65,182.63,0.18]
[1752824779270,46.00468397,182.64,182.63,7.35809091]
[1752824779676,46.00468397,182.64,182.61,0.18]
[1752824779876,46.00468397,182.64,182.63,7.35809091]
[1752824780592,16.78468397,182.63,182.61,0.18]
[1752824780798,16.78468397,182.63,182.62,7.35809091]
[1752824781004,0.66,182.7,182.62,7.53809091]
[1752824781179,46.00468397,182.69,182.66,7.35809091]
[1752824781511,16.78468397,182.67,182.66,7.35809091]
[1752824781685,29.22,182.67,182.66,12.83274326]
[1752824781888,16.78468397,182.71,182.66,13.01274326]
[1752824782115,16.78468397,182.71,182.7,7.35809091]
[1752824782295,46.00468397,182.71,182.7,7.35809091]
[1752824782614,16.78468397,182.7,182.67,0.18]
[1752824782778,29.22,182.69,182.68,5.47405298]
[1752824782979,29.22,182.69,182.68,13.01214389]
[1752824783888,0.06,182.74,182.68,26.69727636]
[1752824784107,29.22,182.73,182.68,19.15918545]
[1752824784281,29.22,182.73,182.69,0.18]
[1752824784497,29.22,182.73,182.7,0.18]
[1752824784899,29.22,182.73,182.71,5.47315417]
[1752824785100,0.06,182.74,182.71,5.47315417]
[1752824785413,0.06,182.74,182.73,7.35809091]
[1752824785587,1e-08,182.74,182.73,33.35809091]
[1752824785782,0.06,182.78,182.73,33.72049091]
[1752824785981,0.06,182.78,182.77,7.35809091]
[1752824786391,0.06,182.78,182.77,7.53809091]
[1752824786800,0.06,182.78,182.77,13.00944835]
[1752824787009,0.06,182.78,182.77,17.40124785]
[1752824788085,0.06,182.78,182.77,17.22124785]
[1752824788890,0.06,182.78,182.76,5.47165681]
[1752824789092,29.26,182.78,182.76,11.74989041]
[1752824789292,16.78468397,182.77,182.75,17.22179006]
[1752824789493,16.78468397,182.77,182.76,11.74989041]
[1752824789696,29.26,182.78,182.76,11.92989041]
[1752824790000,0.06,182.78,182.77,11.74989041]
[1752824790382,0.06,182.78,182.75,5.47189965]
[1752824790804,29.2,182.77,182.73,31.65227136]
[1752824791100,29.2,182.77,182.75,11.74989041]
[1752824791589,29.2,182.77,182.7,42.88332245]
[1752824791590,16.78468397,182.76,182.7,5.65345374]
[1752824791906,16.78468397,182.76,182.71,11.74989041]
[1752824792105,16.78468397,182.76,182.7,5.47345374]
[1752824792106,16.78468397,182.76,182.72,11.74989041]
[1752824792692,16.78468397,182.74,182.72,11.74989041]
[1752824792982,46.70468397,182.74,182.7,5.47345374]
[1752824793186,0.72,182.73,182.69,11.74989041]
[1752824793395,0.72,182.72,182.69,11.74989041]
[1752824793595,29.2,182.71,182.69,11.74989041]
[1752824793976,29.2,182.71,182.7,11.74989041]
[1752824794186,29.2,182.73,182.7,11.92989041]
[1752824794520,29.2,182.73,182.71,0.18]
[1752824794810,29.2,182.74,182.72,11.74989041]
[1752824795102,29.2,182.74,182.73,11.92989041]
[1752824795293,29.2,182.74,182.73,11.74989041]
[1752824795491,0.06,182.78,182.73,11.92989041]
[1752824795697,29.2,182.77,182.75,11.74989041]
[1752824796210,29.2,182.77,182.74,11.74989041]
[1752824796391,29.2,182.77,182.75,11.74989041]
[1752824796795,29.2,182.77,182.72,5.65284312]
[1752824796990,29.2,182.77,182.75,17.22156748]
[1752824797690,29.2,182.77,182.74,5.47218922]
[1752824797889,29.2,182.77,182.75,11.74989041]
[1752824798406,29.92,182.77,182.74,11.74989041]
[1752824799209,29.92,182.77,182.74,17.22209375]
[1752824799401,29.2,182.77,182.76,11.74989041]
[1752824800011,29.2,182.77,182.75,11.74989041]
[1752824800696,29.2,182.77,182.76,11.74989041]
[1752824801505,0.06,182.78,182.76,17.40144465]
[1752824801812,0.06,182.78,182.77,11.74989041]
[1752824803300,0.06,182.78,182.77,17.22124785]
[1752824804415,0.06,182.78,182.77,17.40124785]
[1752824804911,0.06,182.78,182.77,5.65135744]
[1752824805112,0.06,182.78,182.77,17.40124785]
[1752824805305,1e-08,182.78,182.77,222.58124785]
[1752824808703,0.06,182.81,182.8,26.0]
[1752824808899,0.06,182.81,182.8,40.6785136]
[1752824809098,0.06,182.81,182.8,73.6385136]
[1752824809607,0.06,182.84,182.8,73.6385136]
[1752824809808,0.06,182.84,182.83,7.3392568]
[1752824810315,0.06,182.84,182.81,0.18]
[1752824810519,0.06,182.84,182.83,7.3392568]
[1752824810905,0.06,182.84,182.83,12.80881868]
[1752824813707,0.06,182.84,182.83,12.98881868]
[1752824814197,0.06,182.84,182.83,15.69310565]
[1752824815299,0.06,182.84,182.83,15.51310565]
[1752824815616,0.06,182.84,182.83,48.29310565]
[1752824815820,0.06,182.84,182.83,48.47310565]
[1752824816396,0.06,182.92,182.87,32.78]
[1752824816595,0.06,182.92,182.91,40.1192568]
[1752824818016,0.06,182.92,182.9,146.4]
[1752824818230,0.68,182.91,182.9,146.4]
[1752824818610,0.68,182.91,182.9,153.7392568]
[1752824819625,0.68,182.91,182.9,159.20672536]
[1752824819829,0.06,182.92,182.9,159.20672536]
[1752824820031,0.06,182.92,182.91,7.3392568]
[1752824821130,0.74,182.92,182.91,7.3392568]
[1752824821427,0.06,182.92,182.91,12.98642644]
[1752824821733,0.06,182.92,182.91,159.38642644]
[1752824822728,0.1,182.97,182.94,26.0]
[1752824822909,0.1,182.97,182.96,12.80493235]
[1752824823113,0.1,182.97,182.96,188.34493235]
[1752824823313,0.1,182.97,182.96,188.52493235]
[1752824823724,0.1,182.97,182.96,188.34493235]
[1752824824742,0.1,182.97,182.96,159.20493235]
[1752824828236,0.1,182.97,182.96,12.80493235]
[1752824828418,0.1,182.97,182.96,41.94493235]
[1752824829138,0.1,182.97,182.96,41.92493235]
[1752824829342,0.1,182.97,182.96,7.3392568]
[1752824829540,0.78,182.97,182.96,7.3392568]
[1752824829914,0.78,182.97,182.91,146.4]
[1752824830139,23.25148397,182.96,182.92,7.3392568]
[1752824830318,23.25148397,182.96,182.9,7.3392568]
[1752824830319,18.36488397,182.94,182.9,7.3392568]
[1752824830524,0.68,182.93,182.85,146.58]
[1752824830830,0.68,182.93,182.9,7.3392568]
[1752824831021,0.68,182.92,182.9,7.3392568]
[1752824831533,0.68,182.91,182.9,7.3392568]
[1752824832741,16.78468397,182.9,182.83,179.18]
[1752824832950,23.41398397,182.88,182.83,7.3392568]
[1752824833123,0.68,182.87,182.82,7.3392568]
[1752824833454,6.14862485,182.87,182.82,33.3392568]
[1752824833657,5.46862485,182.87,182.82,33.3392568]
[1752824833961,0.68,182.86,182.82,7.3392568]
[1752824834136,2.1825,182.86,182.81,7.3392568]
[1752824834327,24.80394077,182.85,182.77,0.03]
[1752824834660,16.78468397,182.83,182.78,7.3392568]
[1752824835149,0.68,182.82,182.78,11.75334835]
[1752824835452,0.68,182.81,182.77,11.78334835]
[1752824835645,16.78468397,182.8,182.77,0.03]
[1752824836035,16.78468397,182.78,182.77,0.03]
[1752824836526,17.46468397,182.78,182.77,0.03]
[1752824836727,16.78468397,182.8,182.77,0.03]
[1752824836929,0.68,182.78,182.77,0.03]
[1752824838531,16.78468397,182.81,182.77,0.03]
[1752824838532,0.68,182.81,182.77,11.78334835]
[1752824838736,0.68,182.81,182.8,11.75334835]
[1752824839532,0.68,182.81,182.77,0.03]
[1752824839748,0.68,182.81,182.79,11.75334835]
[1752824840158,0.68,182.81,182.8,11.75334835]
[1752824840848,0.68,182.84,182.8,11.75334835]
[1752824841048,6.97123173,182.86,182.82,11.75334835]
[1752824841367,0.68,182.83,182.81,11.75334835]
[1752824841864,0.68,182.83,182.82,11.75334835]
[1752824842165,0.68,182.83,182.8,5.47037014]
[1752824843050,17.45468397,182.85,182.8,5.47037014]
[1752824843250,17.45468397,182.85,182.83,11.75334835]
[1752824843454,0.67,182.84,182.82,11.75334835]
[1752824843761,0.67,182.83,182.82,11.75334835]
[1752824843964,16.78468397,182.85,182.82,11.75334835]
[1752824844200,1.5025,182.86,182.81,5.47003839]
[1752824844363,0.67,182.84,182.82,11.75334835]
[1752824844867,2.1725,182.86,182.83,11.75334835]
[1752824845165,0.67,182.84,182.83,11.75334835]
[1752824845548,1.5025,182.86,182.83,11.75334835]
[1752824845763,2.1725,182.86,182.84,11.75334835]
[1752824846258,0.67,182.85,182.83,11.75334835]
[1752824846434,1.5025,182.86,182.84,11.75334835]
[1752824846637,2.1725,182.86,182.84,11.75334835]
[1752824848173,7.2993,182.88,182.85,11.75334835]
[1752824848369,0.67,182.88,182.87,11.75334835]
[1752824848855,1.5562,182.9,182.87,11.75334835]
[1752824849057,1.5562,182.9,182.89,11.75334835]
[1752824849453,29.79,182.91,182.89,11.75334835]
[1752824849869,29.12,182.91,182.89,11.75334835]
[1752824850178,29.12,182.91,182.88,11.75334835]
[1752824850179,0.67,182.9,182.88,11.75334835]
[1752824850356,0.67,182.89,182.88,11.75334835]
[1752824850682,0.67,182.89,182.86,11.75334835]
[1752824850880,0.67,182.89,182.84,11.75334835]
[1752824851350,0.67,182.9,182.87,11.75334835]
[1752824851750,0.67,182.89,182.87,11.75334835]
[1752824851986,1.595,182.87,182.8,26.0]
[1752824852173,16.78468397,182.84,182.79,11.75334835]
[1752824852354,0.67,182.83,182.81,11.75334835]
[1752824852554,29.79,182.86,182.82,11.75334835]
[1752824852771,29.79,182.86,182.84,11.75334835]
[1752824853074,0.67,182.85,182.83,11.75334835]
[1752824853276,29.12,182.86,182.84,11.75334835]
[1752824853472,29.12,182.86,182.85,11.75334835]
[1752824854267,29.12,182.86,182.85,17.22231198]
[1752824856775,1.6144,182.91,182.85,17.22231198]
[1752824856974,1.6144,182.91,182.9,11.75334835]
[1752824857383,2.2844,182.91,182.85,165.5413727]
[1752824857690,2.2844,182.91,182.9,11.75334835]
[1752824858085,1.6144,182.91,182.9,17.22081691]
[1752824858494,29.1,182.92,182.9,17.22081691]
[1752824858681,29.1,182.92,182.91,11.75334835]
[1752824858871,0.06,182.93,182.91,11.75334835]
[1752824859077,0.06,182.93,182.92,11.75334835]
[1752824860182,0.06,182.93,182.92,17.22021911]
[1752824862219,29.1,182.98,182.95,26.0]
[1752824862509,11.695988,183.0,182.96,11.75334835]
[1752824863079,12.365988,183.0,182.96,11.75334835]
[1752824863278,11.695988,183.0,182.96,11.75334835]
[1752824863507,0.67,182.99,182.96,11.75334835]
[1752824864300,0.77,182.97,182.96,11.75334835]
[1752824864500,0.77,182.97,182.94,11.75334835]
[1752824864693,0.1,182.97,182.96,11.75334835]
[1752824866205,0.1,182.97,182.96,17.2190239]
[1752824867310,0.1,182.97,182.96,5.46567555]
[1752824867481,0.1,182.97,182.96,17.2190239]
[1752824869900,0.77,182.97,182.96,11.75334835]
[1752824870712,0.77,182.97,182.95,11.75334835]
[1752824871206,0.77,182.97,182.92,5.46686055]
[1752824871395,0.77,182.97,182.92,11.75334835]
[1752824872389,0.77,182.97,182.93,5.46657191]
[1752824872597,0.1,182.97,182.94,11.75334835]
[1752824872798,0.67,182.96,182.94,11.75334835]
[1752824873009,29.08,182.95,182.94,11.75334835]
[1752824874795,29.08,182.95,182.94,17.21962144]
[1752824875716,29.16,182.97,182.94,17.21962144]
[1752824875917,29.16,182.97,182.91,13.66762632]
[1752824876100,29.16,182.97,182.94,11.75334835]
[1752824876420,29.83,182.97,182.94,11.75334835]
[1752824876788,0.1,182.97,182.91,160.06762632]
[1752824876998,0.1,182.97,182.95,11.75334835]
[1752824877201,29.16,182.97,182.96,11.75334835]
[1752824877511,29.83,182.97,182.93,11.75334835]
[1752824877692,0.67,182.96,182.94,11.75334835]
[1752824877894,29.16,182.97,182.95,11.75334835]
[1752824878129,29.83,182.97,182.96,5.46567555]
[1752824878516,29.16,182.97,182.96,5.46567555]
[1752824879712,29.83,182.97,182.95,17.21925227]
[1752824880016,0.67,182.96,182.92,5.46687076]
[1752824880216,0.67,182.95,182.92,5.46687076]
[1752824880522,0.67,182.95,182.93,11.75334835]
[1752824881227,0.1,182.97,182.92,19.13404766]
[1752824881432,29.06,182.96,182.95,11.75334835]
[1752824881640,0.77,182.97,182.95,11.75334835]
[1752824881933,29.83,182.97,182.95,11.75334835]
[1752824882099,29.83,182.97,182.96,5.46567555]
[1752824882294,0.1,182.97,182.96,5.46567555]
[1752824882626,0.1,182.97,182.96,17.2190239]
[1752824883620,0.77,182.97,182.96,11.75334835]
[1752824883830,0.77,182.97,182.95,11.75334835]
[1752824884035,0.67,182.96,182.92,146.4]
[1752824884220,40.81334835,182.95,182.88,5.46806649]
[1752824884397,0.67,182.94,182.89,11.75334835]
[1752824884597,0.67,182.94,182.9,11.75334835]
[1752824885124,0.67,182.93,182.9,11.75334835]
[1752824885310,0.67,182.93,182.91,11.75334835]
[1752824885625,0.67,182.92,182.91,11.75334835]
[1752824885794,0.67,182.92,182.89,11.75334835]
[1752824886130,29.73,182.91,182.89,11.75334835]
[1752824886334,12.42334835,182.9,182.83,11.75334835]
[1752824886624,0.67,182.89,182.84,11.75334835]
[1752824886834,0.67,182.89,182.85,11.75334835]
[1752824886994,0.67,182.89,182.86,11.75334835]
[1752824887194,0.67,182.88,182.85,11.75334835]
[1752824887423,29.06,182.87,182.85,11.75334835]
[1752824887630,29.06,182.87,182.86,11.75334835]
[1752824887999,1.6278,182.91,182.86,11.75334835]
[1752824888201,29.06,182.9,182.89,11.75334835]
[1752824888511,2.2978,182.91,182.89,17.22104688]
[1752824888512,30.6878,182.91,182.89,17.22104688]
[1752824888830,30.6878,182.91,182.9,11.75334835]
[1752824889399,29.06,182.91,182.9,11.75334835]
[1752824889713,29.06,182.92,182.9,11.75334835]
[1752824889909,29.06,182.92,182.89,5.46769853]
[1752824890214,0.67,182.91,182.86,19.14006641]
[1752824890719,0.67,182.91,182.87,0.03]
[1752824891316,0.67,182.91,182.9,17.22081691]
[1752824894027,29.06,182.93,182.92,11.75334835]
[1752824894333,0.67,182.95,182.92,11.75334835]
[1752824894510,29.73,182.94,182.93,11.75334835]
[1752824896036,29.73,182.94,182.93,17.21992026]
[1752824896933,16.78468397,182.93,182.87,0.03]
[1752824897112,11.75334835,182.92,182.87,0.03]
[1752824897309,11.75334835,182.91,182.87,0.03]
[1752824897511,29.04,182.9,182.87,0.03]
[1752824898218,0.67,182.89,182.87,0.03]
[1752824898606,0.67,182.88,182.87,0.03]
[1752824901107,0.67,182.88,182.87,11.78334835]
[1752824901108,29.04,182.88,182.87,11.78334835]
[1752824902118,29.04,182.88,182.87,17.25171385]
[1752824902646,29.75,182.88,182.87,0.03]
[1752824905008,29.04,182.88,182.87,11.78334835]
[1752824905506,29.04,182.9,182.89,26.0]
[1752824905708,29.04,182.91,182.89,11.75334835]
[1752824905948,29.04,182.91,182.9,11.75334835]
[1752824906542,29.04,182.93,182.9,30.88948831]
[1752824906714,29.04,182.93,182.92,11.75334835]
[1752824906917,2.2178,182.96,182.92,11.75334835]
[1752824907128,0.71,182.95,182.94,11.75334835]
[1752824907434,29.75,182.95,182.94,11.75334835]
[1752824907741,29.04,182.95,182.94,11.75334835]
[1752824908256,29.75,182.95,182.9,165.53613996]
[1752824908548,29.75,182.95,182.94,11.75334835]
[1752824909531,29.04,182.95,182.94,11.75334835]
[1752824909937,0.81,182.97,182.94,11.75334835]
[1752824910255,29.04,182.96,182.92,26.0]
[1752824910549,29.04,182.96,182.93,5.46657191]
[1752824910923,0.71,182.95,182.93,5.46657191]
[1752824911319,0.71,182.95,182.94,11.75334835]
[1752824911846,29.04,182.96,182.94,11.75334835]
[1752824912053,29.04,182.96,182.95,11.75334835]
[1752824912551,29.04,182.96,182.94,11.75334835]
[1752824912917,0.71,182.95,182.93,0.03]
[1752824913161,11.75334835,182.94,182.89,0.03]
[1752824913317,31.3833,182.93,182.89,0.03]
[1752824913515,31.3833,182.93,182.89,11.78334835]
[1752824913716,0.71,182.92,182.89,11.78334835]
[1752824913935,0.71,182.92,182.9,11.75334835]
[1752824914536,30.6733,182.93,182.91,11.75334835]
[1752824914738,2.3633,182.93,182.92,11.75334835]
[1752824914934,31.3833,182.93,182.91,11.75334835]
[1752824915518,29.73,182.93,182.91,11.75334835]
[1752824915720,29.73,182.93,182.9,5.46741089]
[1752824915721,29.02,182.93,182.92,11.75334835]
[1752824915919,29.02,182.93,182.9,5.46741089]
[1752824916122,29.02,182.93,182.92,11.75334835]
[1752824916434,0.71,182.95,182.92,11.75334835]
[1752824916635,29.02,182.94,182.92,11.75334835]
[1752824916837,29.02,182.93,182.92,17.22016946]
[1752824917554,29.02,182.93,182.92,11.75334835]
[1752824918253,29.73,182.93,182.91,11.75334835]
[1752824918424,0.71,182.92,182.89,0.03]
[1752824918628,0.71,182.92,182.9,11.75334835]
[1752824918846,29.73,182.92,182.9,11.75334835]
[1752824919154,0.71,182.91,182.9,11.75334835]
[1752824919534,0.71,182.91,182.89,11.78334835]
[1752824920058,29.02,182.92,182.9,11.75334835]
[1752824920958,29.73,182.92,182.9,11.75334835]
[1752824921461,29.73,182.92,182.9,17.22078598]
[1752824923766,29.73,182.92,182.9,11.75334835]
[1752824923943,0.71,182.91,182.89,0.03]
[1752824924144,28.53803232,182.9,182.87,0.03]
[1752824924331,28.53803232,182.88,182.87,0.03]
[1752824924751,29.24803232,182.88,182.87,0.03]
[1752824926152,17.49468397,182.88,182.87,0.03]
[1752824927137,46.22112056,182.89,182.87,0.03]
[1752824927138,29.0,182.89,182.87,0.03]
[1752824927668,7.6699,182.91,182.87,17.25171385]
[1752824927844,8.005,182.96,182.9,11.75334835]
[1752824928032,29.71,182.95,182.92,11.75334835]
[1752824928240,0.71,182.94,182.92,11.75334835]
[1752824928748,0.71,182.94,182.91,11.75334835]
[1752824929267,0.71,182.93,182.91,11.75334835]
[1752824929468,29.0,182.92,182.91,11.75334835]
[1752824930132,29.71,182.92,182.89,11.75334835]
[1752824930474,0.71,182.91,182.87,0.03]
[1752824930848,16.78468397,182.91,182.87,11.78334835]
[1752824931053,0.71,182.9,182.87,11.78334835]
[1752824931380,29.0,182.89,182.87,11.78334835]
[1752824931574,29.67,182.89,182.87,11.78334835]
[1752824932778,29.0,182.89,182.87,0.03]
[1752824932962,29.67,182.89,182.87,0.03]
[1752824933379,29.0,182.89,182.87,17.25166403]
[1752824934356,29.0,182.89,182.88,11.75334835]
[1752824935892,35.1377978,182.89,182.87,0.03]
[1752824936052,46.22114615,182.89,182.87,0.03]
[1752824936255,0.67,182.88,182.87,0.03]
[1752824936456,17.45468397,182.88,182.87,0.03]
[1752824937882,46.43468397,182.88,182.87,0.03]
[1752824938066,34.67609881,182.88,182.87,0.03]
[1752824938271,63.65609881,182.88,182.87,0.03]
[1752824940173,51.90275046,182.88,182.87,0.03]
[1752824940350,26.73,182.91,182.87,0.03]
[1752824940551,45.76468397,182.9,182.87,0.03]
[1752824940777,46.43468397,182.9,182.87,0.03]
[1752824940975,0.67,182.89,182.87,0.03]
[1752824941178,28.98,182.88,182.87,0.03]
[1752824941376,28.98,182.88,182.87,11.78334835]
[1752824941582,28.98,182.88,182.87,17.25171385]
[1752824941804,0.06,182.91,182.87,17.25171385]
[1752824941957,0.06,182.91,182.9,11.75334835]
[1752824941958,29.04,182.91,182.9,11.75334835]
[1752824942471,0.06,182.91,182.9,11.75334835]
[1752824942777,0.06,182.91,182.9,11.81334835]
[1752824943677,0.06,182.91,182.9,17.28081691]
[1752824946279,0.06,182.91,182.9,17.22081691]
[1752824946791,0.06,182.91,182.9,17.28081691]
[1752824946982,0.06,182.91,182.89,31.46767313]
[1752824947488,0.06,182.91,182.9,11.75334835]
[1752824947861,0.06,182.91,182.9,17.22081691]
[1752824948061,0.06,182.91,182.89,31.46771766]
[1752824948289,0.06,182.91,182.9,11.75334835]
[1752824949966,0.73,182.91,182.89,26.0]
[1752824950158,0.06,182.91,182.88,17.2213422]
[1752824950360,0.67,182.9,182.88,5.46799385]
[1752824950564,0.67,182.89,182.88,11.75334835]
[1752824950862,0.67,182.89,182.87,11.78334835]
[1752824951062,0.67,182.89,182.87,17.2516625]
[1752824951265,0.67,182.89,182.88,11.75334835]
[1752824951667,0.67,182.89,182.87,17.2516625]
[1752824952172,0.06,182.91,182.88,11.75334835]
[1752824952372,0.06,182.91,182.89,11.75334835]
[1752824952587,0.06,182.91,182.9,11.75334835]
[1752824953488,0.06,182.91,182.87,0.03]
[1752824953669,0.06,182.91,182.9,11.75334835]
[1752824954567,0.06,182.91,182.9,17.22081691]
[1752824955581,0.06,182.91,182.9,11.75334835]
[1752824957094,0.73,182.91,182.87,0.03]
[1752824957294,0.67,182.9,182.87,11.78334835]
[1752824957601,29.61,182.89,182.87,11.78334835]
[1752824957974,29.61,182.89,182.87,0.03]
[1752824958271,29.61,182.89,182.87,11.78334835]
[1752824959601,29.61,182.89,182.88,11.75334835]
[1752824959800,29.61,182.89,182.87,11.78334835]
[1752824960096,29.61,182.89,182.87,17.24434835]
[1752824960285,29.61,182.89,182.87,11.78334835]
[1752824961078,0.67,182.88,182.87,0.03]
[1752824963097,28.94,182.89,182.87,0.03]
[1752824963696,0.68,182.88,182.87,0.03]
[1752824964080,0.06,182.91,182.87,11.78334835]
[1752824964281,0.06,182.91,182.9,11.75334835]
[1752824964708,0.74,182.91,182.88,11.75334835]
[1752824964905,0.68,182.9,182.88,11.75334835]
[1752824965111,29.62,182.89,182.87,0.03]
[1752824965400,5.52717792,182.91,182.87,0.03]
[1752824965401,0.06,182.91,182.88,11.75334835]
[1752824965588,0.06,182.91,182.9,11.75334835]
[1752824965789,0.06,182.91,182.9,19.53697722]
[1752824966811,0.06,182.91,182.9,25.00444578]
[1752824968084,0.06,182.91,182.9,24.94444578]
[1752824970202,0.10130637,182.91,182.9,24.92444578]
[1752824974731,0.10130637,182.91,182.9,24.98444578]
[1752824974929,0.10130637,182.91,182.9,13.25109743]
[1752824975237,0.10130637,182.91,182.9,20.52306834]
[1752824975399,0.10130637,182.91,182.9,53.31306834]
[1752824975605,0.10130637,182.91,182.9,20.52306834]
[1752824977553,0.10130637,182.91,182.9,7.33197091]
[1752824979319,0.74,182.93,182.92,7.33197091]
[1752824979916,0.74,182.93,182.89,5.46753119]
[1752824980109,0.06,182.93,182.92,7.33197091]
[1752824980614,0.74,182.93,182.92,7.33197091]
[1752824984429,6.20667624,182.93,182.88,5.93684899]
[1752824984641,0.68,182.92,182.88,7.33197091]